{"text_format":"3","workbook":"xlsx","n_sheets":14,"sheets":["συμβουλές","σύνοψη","ιαν","φεβ","μαρ","απρ","μάι","ιούν","ιούλ","αύγ","σεπ","οκτ","νοέ","δεκ"],"not_rendered":{"charts":1,"defined_names":27},"read":"whole","date_system":"1900"}

{"sheet":"συμβουλές","index":0,"n_rows":18,"n_cols":1,"rows_kept":18}
["ΣΥΜΒΟΥΛΕΣ ΓΙΑ ΤΟ ΠΡΟΤΥΠΟ"]
["Υπάρχει κάποιος εύκολος τρόπος για εναλλαγή μεταξύ του φύλλου σύνοψης και των λεπτομερειών των μηνιαίων εξόδων στις Τάσεις εξόδων;"]
["Για να μεταβείτε γρήγορα στα έξοδα ενός συγκεκριμένου μήνα, κάντε κλικ στην αντίστοιχη σύνδεση περιήγησης επάνω από το γράφημα, όπως στη σύνδεση περιήγησης Ιαν στο κελί B2. Στη συνέχεια, για να επιστρέψετε στο φύλλο εργασίας \"Τάσεις εξόδων\", κάντε κλικ στη σύνδεση περιήγησης Σύνοψη στο κελί D1. "]
["Για να επιστρέψετε σε αυτό το φύλλο εργασίας συμβουλών, από το φύλλο εργασίας σύνοψης, επιλέξτε N2. Από όλα τα μηνιαία φύλλα εργασίας, επιλέξτε E1."]
["Πώς μπορώ να προσθέσω έναν νέο τύπο εξόδων στη σύνοψη εξόδων ή στα νέα μηνιαία έξοδα;"]
["Η σύνοψη εξόδων κάτω από το γράφημα και τα στοιχεία εξόδων για κάθε μήνα είναι πίνακες του Excel. Για να προσθέσετε νέες γραμμές σε οποιονδήποτε πίνακα του Excel, κάντε ένα από τα εξής:"]
[{"$f":"ROW(A1)&\". Εάν ο πίνακας δεν διαθέτει μια Γραμμή αθροίσματος, ξεκινήστε να πληκτρολογείτε κάτω από τον πίνακα και εκείνος θα επεκταθεί αυτόματα, μόλις πατήσετε το πλήκτρο \"\"Enter\"\" ή \"\"Tab\"\".\"","v":"1. Εάν ο πίνακας δεν διαθέτει μια Γραμμή αθροίσματος, ξεκινήστε να πληκτρολογείτε κάτω από τον πίνακα και εκείνος θα επεκταθεί αυτόματα, μόλις πατήσετε το πλήκτρο \"Enter\" ή \"Tab\"."}]
[{"$f":"ROW(A2)&\". Τοποθετήστε τον δείκτη του κελιού στο τελευταίο κελί πάνω από τη Γραμμή αθροίσματος, όπως στο άθροισμα των τελευταίων εξόδων και, στη συνέχεια, πατήστε το πλήκτρο \"\"Tab\"\".\"","v":"2. Τοποθετήστε τον δείκτη του κελιού στο τελευταίο κελί πάνω από τη Γραμμή αθροίσματος, όπως στο άθροισμα των τελευταίων εξόδων και, στη συνέχεια, πατήστε το πλήκτρο \"Tab\"."}]
[{"$f":"ROW(A3)&\". Κάντε δεξί κλικ στον πίνακα και στο αναδυόμενο μενού τοποθετήστε τον δείκτη στην επιλογή \"\"Εισαγωγή\"\" και, στη συνέχεια, κάντε κλικ στην επιλογή \"\"Γραμμές πίνακα επάνω\"\" ή στην επιλογή \"\"Γραμμές πίνακα κάτω\"\".\"","v":"3. Κάντε δεξί κλικ στον πίνακα και στο αναδυόμενο μενού τοποθετήστε τον δείκτη στην επιλογή \"Εισαγωγή\" και, στη συνέχεια, κάντε κλικ στην επιλογή \"Γραμμές πίνακα επάνω\" ή στην επιλογή \"Γραμμές πίνακα κάτω\"."}]
[{"$f":"ROW(A4)&\". Στην κάτω δεξιά γωνία του πίνακα, τοποθετήστε τον δείκτη του ποντικιού στη λαβή αλλαγής μεγέθους πίνακα και σύρετέ την προς τα κάτω, για να αυξήσετε τον αριθμό των διαθέσιμων γραμμών του πίνακα.\"","v":"4. Στην κάτω δεξιά γωνία του πίνακα, τοποθετήστε τον δείκτη του ποντικιού στη λαβή αλλαγής μεγέθους πίνακα και σύρετέ την προς τα κάτω, για να αυξήσετε τον αριθμό των διαθέσιμων γραμμών του πίνακα."}]
["Εισαγάγετε ένα έξοδο στο φύλλο εργασίας Σύνοψη στον πίνακα ΣύνοψηΕξόδων στη στήλη Έξοδα."]
["Προσθέστε το ποσό εξόδων για κάθε τύπο εξόδου στο φύλλο εργασίας για το μήνα που αφορά το έξοδο."]
["Για παράδειγμα: Το \"Έξοδο 1\" εμφανίζεται στους μήνες Ιανουάριο έως Ιούνιο και το Δεκέμβριο. "]
[{"$f":"ROW(A1)&\". Η φράση \"\"Έξοδο 1\"\" εισάγεται στο φύλλο εργασίας \"\"Σύνοψη\"\", κάτω από τον πίνακα \"\"ΣύνοψηΕξόδων\"\" (ως τίτλος για τον τύπο εξόδων)\"","v":"1. Η φράση \"Έξοδο 1\" εισάγεται στο φύλλο εργασίας \"Σύνοψη\", κάτω από τον πίνακα \"ΣύνοψηΕξόδων\" (ως τίτλος για τον τύπο εξόδων)"}]
[{"$f":"ROW(A2)&\". Για κάθε μήνα που προκύπτει αυτό το έξοδο, εισαγάγετε το ποσό του εξόδου στο φύλλο εργασίας του αντίστοιχου μήνα.\"","v":"2. Για κάθε μήνα που προκύπτει αυτό το έξοδο, εισαγάγετε το ποσό του εξόδου στο φύλλο εργασίας του αντίστοιχου μήνα."}]
[{"$f":"ROW(A3)&\". Ο τύπος εξόδων από το φύλλο εργασίας \"\"ΣύνοψηΕξόδων\"\" δημιουργεί μια λίστα κατηγοριών για τη στήλη \"\"Κατηγορία\"\" στο φύλλο εργασίας κάθε μήνα.\"","v":"3. Ο τύπος εξόδων από το φύλλο εργασίας \"ΣύνοψηΕξόδων\" δημιουργεί μια λίστα κατηγοριών για τη στήλη \"Κατηγορία\" στο φύλλο εργασίας κάθε μήνα."}]
[{"$f":"ROW(A4)&\". Χρησιμοποιήστε τη λίστα κατηγοριών στη στήλη \"\"Κατηγορία\"\", για να επιλέξετε τον αντίστοιχο τύπο εξόδων για το ποσό εξόδων που εισαγάγατε\"","v":"4. Χρησιμοποιήστε τη λίστα κατηγοριών στη στήλη \"Κατηγορία\", για να επιλέξετε τον αντίστοιχο τύπο εξόδων για το ποσό εξόδων που εισαγάγατε"}]
[{"$f":"ROW(A5)&\". Για να προσθέσετε νέα έξοδα για οποιονδήποτε μήνα, εισαγάγετε μια νέα γραμμή στον πίνακα \"\"ΣύνοψηΕξόδων\"\" και, στη συνέχεια, εισαγάγετε τις αντίστοιχες λεπτομέρειες εξόδων στο φύλλο εργασίας του μήνα όπου αντιστοιχούν.\"","v":"5. Για να προσθέσετε νέα έξοδα για οποιονδήποτε μήνα, εισαγάγετε μια νέα γραμμή στον πίνακα \"ΣύνοψηΕξόδων\" και, στη συνέχεια, εισαγάγετε τις αντίστοιχες λεπτομέρειες εξόδων στο φύλλο εργασίας του μήνα όπου αντιστοιχούν."}]

{"sheet":"σύνοψη","index":1,"n_rows":10,"n_cols":15,"rows_kept":10}
["ΤΑΣΕΙΣ ΕΞΟΔΩΝ"]
[null,"Ιαν","Φεβ","Μάρ","Απρ","Μάι","Ιούν","Ιούλ","Αύγ","Σεπ","Οκτ","Νοέ","Δεκ","Συμβουλές"]
[]
["Έξοδα","Ιαν","Φεβ","Μάρ","Απρ","Μάι","Ιούν","Ιούλ","Αύγ","Σεπ","Οκτ","Νοέ","Δεκ","Άθροισμα","Τάση"]
["Έξοδο 1",{"$f":"SUMIFS(ΈξΙαν[Ποσό],ΈξΙαν[Κατηγορία],ΣύνοψηΕξόδων[Έξοδα])","v":{"v":33,"d":"33.00"}},{"$f":"SUMIFS(ΈξΦεβ[Ποσό],ΈξΦεβ[Κατηγορία],ΣύνοψηΕξόδων[Έξοδα])","v":{"v":375,"d":"375.00"}},{"$f":"SUMIFS(ΈξΜαρ[Ποσό],ΈξΜαρ[Κατηγορία],ΣύνοψηΕξόδων[Έξοδα])","v":{"v":33,"d":"33.00"}},{"$f":"SUMIFS(ΈξΑπρ[Ποσό],ΈξΑπρ[Κατηγορία],ΣύνοψηΕξόδων[Έξοδα])","v":{"v":45,"d":"45.00"}},{"$f":"SUMIFS(ΈξΜαΐ[Ποσό],ΈξΜαΐ[Κατηγορία],ΣύνοψηΕξόδων[Έξοδα])","v":{"v":375,"d":"375.00"}},{"$f":"SUMIFS(ΈξΙουν[Ποσό],ΈξΙουν[Κατηγορία],ΣύνοψηΕξόδων[Έξοδα])","v":{"v":201,"d":"201.00"}},{"$f":"SUMIFS(ΈξΙουλ[Ποσό],ΈξΙουλ[Κατηγορία],ΣύνοψηΕξόδων[Έξοδα])","v":{"v":0,"d":"0.00"}},{"$f":"SUMIFS(ΈξΑυγ[Ποσό],ΈξΑυγ[Κατηγορία],ΣύνοψηΕξόδων[Έξοδα])","v":{"v":0,"d":"0.00"}},{"$f":"SUMIFS(ΈξΣεπ[Ποσό],ΈξΣεπ[Κατηγορία],ΣύνοψηΕξόδων[Έξοδα])","v":{"v":0,"d":"0.00"}},{"$f":"SUMIFS(ΈξΟκτ[Ποσό],ΈξΟκτ[Κατηγορία],ΣύνοψηΕξόδων[Έξοδα])","v":{"v":0,"d":"0.00"}},{"$f":"SUMIFS(ΈξΝοε[Ποσό],ΈξΝοε[Κατηγορία],ΣύνοψηΕξόδων[Έξοδα])","v":{"v":0,"d":"0.00"}},{"$f":"SUMIFS(ΈξΔεκ[Ποσό],ΈξΔεκ[Κατηγορία],ΣύνοψηΕξόδων[Έξοδα])","v":{"v":201,"d":"201.00"}},{"$f":"SUM(ΣύνοψηΕξόδων[[#This Row],[Ιαν]:[Δεκ]])","v":{"v":1263,"d":"1,263.00"}}]
["Έξοδο 2",{"$f":"SUMIFS(ΈξΙαν[Ποσό],ΈξΙαν[Κατηγορία],ΣύνοψηΕξόδων[Έξοδα])","v":{"v":238,"d":"238.00"}},{"$f":"SUMIFS(ΈξΦεβ[Ποσό],ΈξΦεβ[Κατηγορία],ΣύνοψηΕξόδων[Έξοδα])","v":{"v":238,"d":"238.00"}},{"$f":"SUMIFS(ΈξΜαρ[Ποσό],ΈξΜαρ[Κατηγορία],ΣύνοψηΕξόδων[Έξοδα])","v":{"v":238,"d":"238.00"}},{"$f":"SUMIFS(ΈξΑπρ[Ποσό],ΈξΑπρ[Κατηγορία],ΣύνοψηΕξόδων[Έξοδα])","v":{"v":123,"d":"123.00"}},{"$f":"SUMIFS(ΈξΜαΐ[Ποσό],ΈξΜαΐ[Κατηγορία],ΣύνοψηΕξόδων[Έξοδα])","v":{"v":111,"d":"111.00"}},{"$f":"SUMIFS(ΈξΙουν[Ποσό],ΈξΙουν[Κατηγορία],ΣύνοψηΕξόδων[Έξοδα])","v":{"v":98,"d":"98.00"}},{"$f":"SUMIFS(ΈξΙουλ[Ποσό],ΈξΙουλ[Κατηγορία],ΣύνοψηΕξόδων[Έξοδα])","v":{"v":0,"d":"0.00"}},{"$f":"SUMIFS(ΈξΑυγ[Ποσό],ΈξΑυγ[Κατηγορία],ΣύνοψηΕξόδων[Έξοδα])","v":{"v":0,"d":"0.00"}},{"$f":"SUMIFS(ΈξΣεπ[Ποσό],ΈξΣεπ[Κατηγορία],ΣύνοψηΕξόδων[Έξοδα])","v":{"v":0,"d":"0.00"}},{"$f":"SUMIFS(ΈξΟκτ[Ποσό],ΈξΟκτ[Κατηγορία],ΣύνοψηΕξόδων[Έξοδα])","v":{"v":0,"d":"0.00"}},{"$f":"SUMIFS(ΈξΝοε[Ποσό],ΈξΝοε[Κατηγορία],ΣύνοψηΕξόδων[Έξοδα])","v":{"v":0,"d":"0.00"}},{"$f":"SUMIFS(ΈξΔεκ[Ποσό],ΈξΔεκ[Κατηγορία],ΣύνοψηΕξόδων[Έξοδα])","v":{"v":440,"d":"440.00"}},{"$f":"SUM(ΣύνοψηΕξόδων[[#This Row],[Ιαν]:[Δεκ]])","v":{"v":1486,"d":"1,486.00"}}]
["Έξοδο 3",{"$f":"SUMIFS(ΈξΙαν[Ποσό],ΈξΙαν[Κατηγορία],ΣύνοψηΕξόδων[Έξοδα])","v":{"v":110,"d":"110.00"}},{"$f":"SUMIFS(ΈξΦεβ[Ποσό],ΈξΦεβ[Κατηγορία],ΣύνοψηΕξόδων[Έξοδα])","v":{"v":110,"d":"110.00"}},{"$f":"SUMIFS(ΈξΜαρ[Ποσό],ΈξΜαρ[Κατηγορία],ΣύνοψηΕξόδων[Έξοδα])","v":{"v":110,"d":"110.00"}},{"$f":"SUMIFS(ΈξΑπρ[Ποσό],ΈξΑπρ[Κατηγορία],ΣύνοψηΕξόδων[Έξοδα])","v":{"v":125,"d":"125.00"}},{"$f":"SUMIFS(ΈξΜαΐ[Ποσό],ΈξΜαΐ[Κατηγορία],ΣύνοψηΕξόδων[Έξοδα])","v":{"v":333,"d":"333.00"}},{"$f":"SUMIFS(ΈξΙουν[Ποσό],ΈξΙουν[Κατηγορία],ΣύνοψηΕξόδων[Έξοδα])","v":{"v":122,"d":"122.00"}},{"$f":"SUMIFS(ΈξΙουλ[Ποσό],ΈξΙουλ[Κατηγορία],ΣύνοψηΕξόδων[Έξοδα])","v":{"v":0,"d":"0.00"}},{"$f":"SUMIFS(ΈξΑυγ[Ποσό],ΈξΑυγ[Κατηγορία],ΣύνοψηΕξόδων[Έξοδα])","v":{"v":0,"d":"0.00"}},{"$f":"SUMIFS(ΈξΣεπ[Ποσό],ΈξΣεπ[Κατηγορία],ΣύνοψηΕξόδων[Έξοδα])","v":{"v":0,"d":"0.00"}},{"$f":"SUMIFS(ΈξΟκτ[Ποσό],ΈξΟκτ[Κατηγορία],ΣύνοψηΕξόδων[Έξοδα])","v":{"v":0,"d":"0.00"}},{"$f":"SUMIFS(ΈξΝοε[Ποσό],ΈξΝοε[Κατηγορία],ΣύνοψηΕξόδων[Έξοδα])","v":{"v":0,"d":"0.00"}},{"$f":"SUMIFS(ΈξΔεκ[Ποσό],ΈξΔεκ[Κατηγορία],ΣύνοψηΕξόδων[Έξοδα])","v":{"v":122,"d":"122.00"}},{"$f":"SUM(ΣύνοψηΕξόδων[[#This Row],[Ιαν]:[Δεκ]])","v":{"v":1032,"d":"1,032.00"}}]
["Έξοδο 4",{"$f":"SUMIFS(ΈξΙαν[Ποσό],ΈξΙαν[Κατηγορία],ΣύνοψηΕξόδων[Έξοδα])","v":{"v":426,"d":"426.00"}},{"$f":"SUMIFS(ΈξΦεβ[Ποσό],ΈξΦεβ[Κατηγορία],ΣύνοψηΕξόδων[Έξοδα])","v":{"v":84,"d":"84.00"}},{"$f":"SUMIFS(ΈξΜαρ[Ποσό],ΈξΜαρ[Κατηγορία],ΣύνοψηΕξόδων[Έξοδα])","v":{"v":84,"d":"84.00"}},{"$f":"SUMIFS(ΈξΑπρ[Ποσό],ΈξΑπρ[Κατηγορία],ΣύνοψηΕξόδων[Έξοδα])","v":{"v":426,"d":"426.00"}},{"$f":"SUMIFS(ΈξΜαΐ[Ποσό],ΈξΜαΐ[Κατηγορία],ΣύνοψηΕξόδων[Έξοδα])","v":{"v":125,"d":"125.00"}},{"$f":"SUMIFS(ΈξΙουν[Ποσό],ΈξΙουν[Κατηγορία],ΣύνοψηΕξόδων[Έξοδα])","v":{"v":187,"d":"187.00"}},{"$f":"SUMIFS(ΈξΙουλ[Ποσό],ΈξΙουλ[Κατηγορία],ΣύνοψηΕξόδων[Έξοδα])","v":{"v":0,"d":"0.00"}},{"$f":"SUMIFS(ΈξΑυγ[Ποσό],ΈξΑυγ[Κατηγορία],ΣύνοψηΕξόδων[Έξοδα])","v":{"v":0,"d":"0.00"}},{"$f":"SUMIFS(ΈξΣεπ[Ποσό],ΈξΣεπ[Κατηγορία],ΣύνοψηΕξόδων[Έξοδα])","v":{"v":0,"d":"0.00"}},{"$f":"SUMIFS(ΈξΟκτ[Ποσό],ΈξΟκτ[Κατηγορία],ΣύνοψηΕξόδων[Έξοδα])","v":{"v":0,"d":"0.00"}},{"$f":"SUMIFS(ΈξΝοε[Ποσό],ΈξΝοε[Κατηγορία],ΣύνοψηΕξόδων[Έξοδα])","v":{"v":0,"d":"0.00"}},{"$f":"SUMIFS(ΈξΔεκ[Ποσό],ΈξΔεκ[Κατηγορία],ΣύνοψηΕξόδων[Έξοδα])","v":{"v":187,"d":"187.00"}},{"$f":"SUM(ΣύνοψηΕξόδων[[#This Row],[Ιαν]:[Δεκ]])","v":{"v":1519,"d":"1,519.00"}}]
["Έξοδο 5",{"$f":"SUMIFS(ΈξΙαν[Ποσό],ΈξΙαν[Κατηγορία],ΣύνοψηΕξόδων[Έξοδα])","v":{"v":54,"d":"54.00"}},{"$f":"SUMIFS(ΈξΦεβ[Ποσό],ΈξΦεβ[Κατηγορία],ΣύνοψηΕξόδων[Έξοδα])","v":{"v":54,"d":"54.00"}},{"$f":"SUMIFS(ΈξΜαρ[Ποσό],ΈξΜαρ[Κατηγορία],ΣύνοψηΕξόδων[Έξοδα])","v":{"v":109,"d":"109.00"}},{"$f":"SUMIFS(ΈξΑπρ[Ποσό],ΈξΑπρ[Κατηγορία],ΣύνοψηΕξόδων[Έξοδα])","v":{"v":98,"d":"98.00"}},{"$f":"SUMIFS(ΈξΜαΐ[Ποσό],ΈξΜαΐ[Κατηγορία],ΣύνοψηΕξόδων[Έξοδα])","v":{"v":33,"d":"33.00"}},{"$f":"SUMIFS(ΈξΙουν[Ποσό],ΈξΙουν[Κατηγορία],ΣύνοψηΕξόδων[Έξοδα])","v":{"v":441,"d":"441.00"}},{"$f":"SUMIFS(ΈξΙουλ[Ποσό],ΈξΙουλ[Κατηγορία],ΣύνοψηΕξόδων[Έξοδα])","v":{"v":0,"d":"0.00"}},{"$f":"SUMIFS(ΈξΑυγ[Ποσό],ΈξΑυγ[Κατηγορία],ΣύνοψηΕξόδων[Έξοδα])","v":{"v":0,"d":"0.00"}},{"$f":"SUMIFS(ΈξΣεπ[Ποσό],ΈξΣεπ[Κατηγορία],ΣύνοψηΕξόδων[Έξοδα])","v":{"v":0,"d":"0.00"}},{"$f":"SUMIFS(ΈξΟκτ[Ποσό],ΈξΟκτ[Κατηγορία],ΣύνοψηΕξόδων[Έξοδα])","v":{"v":0,"d":"0.00"}},{"$f":"SUMIFS(ΈξΝοε[Ποσό],ΈξΝοε[Κατηγορία],ΣύνοψηΕξόδων[Έξοδα])","v":{"v":0,"d":"0.00"}},{"$f":"SUMIFS(ΈξΔεκ[Ποσό],ΈξΔεκ[Κατηγορία],ΣύνοψηΕξόδων[Έξοδα])","v":{"v":99,"d":"99.00"}},{"$f":"SUM(ΣύνοψηΕξόδων[[#This Row],[Ιαν]:[Δεκ]])","v":{"v":888,"d":"888.00"}}]
["Άθροισμα",{"$f":"SUBTOTAL(109,ΣύνοψηΕξόδων[Ιαν])","v":{"v":861,"d":"861.00"}},{"$f":"SUBTOTAL(109,ΣύνοψηΕξόδων[Φεβ])","v":{"v":861,"d":"861.00"}},{"$f":"SUBTOTAL(109,ΣύνοψηΕξόδων[Μάρ])","v":{"v":574,"d":"574.00"}},{"$f":"SUBTOTAL(109,ΣύνοψηΕξόδων[Απρ])","v":{"v":817,"d":"817.00"}},{"$f":"SUBTOTAL(109,ΣύνοψηΕξόδων[Μάι])","v":{"v":977,"d":"977.00"}},{"$f":"SUBTOTAL(109,ΣύνοψηΕξόδων[Ιούν])","v":{"v":1049,"d":"1,049.00"}},{"$f":"SUBTOTAL(109,ΣύνοψηΕξόδων[Ιούλ])","v":{"v":0,"d":"0.00"}},{"$f":"SUBTOTAL(109,ΣύνοψηΕξόδων[Αύγ])","v":{"v":0,"d":"0.00"}},{"$f":"SUBTOTAL(109,ΣύνοψηΕξόδων[Σεπ])","v":{"v":0,"d":"0.00"}},{"$f":"SUBTOTAL(109,ΣύνοψηΕξόδων[Οκτ])","v":{"v":0,"d":"0.00"}},{"$f":"SUBTOTAL(109,ΣύνοψηΕξόδων[Νοέ])","v":{"v":0,"d":"0.00"}},{"$f":"SUBTOTAL(109,ΣύνοψηΕξόδων[Δεκ])","v":{"v":1049,"d":"1,049.00"}},{"$f":"SUBTOTAL(109,ΣύνοψηΕξόδων[Άθροισμα])","v":{"v":6188,"d":"6,188.00"}}]

{"sheet":"ιαν","index":2,"n_rows":9,"n_cols":5,"rows_kept":9,"merged":[[0,0,0,2]]}
["ΕΞΟΔΑ ΙΑΝΟΥΑΡΙΟΥ",null,null,"Σύνοψη","Συμβουλές"]
["Ημερομηνία","Αρ. ΔΠ","Ποσό","Κατηγορία","Περιγραφή"]
[{"$f":"DATE(YEAR(TODAY()),1,4)","v":"2016-01-04"},"A-12345",{"v":33,"d":"33.00"},"Έξοδο 1","Προμήθειες"]
[{"$f":"DATE(YEAR(TODAY()),1,5)","v":"2016-01-05"},"A-12346",{"v":238,"d":"238.00"},"Έξοδο 2"]
[null,null,{"v":342,"d":"342.00"},"Έξοδο 4"]
[null,null,{"v":110,"d":"110.00"},"Έξοδο 3"]
[null,null,{"v":84,"d":"84.00"},"Έξοδο 4"]
[null,null,{"v":54,"d":"54.00"},"Έξοδο 5"]
["Άθροισμα",null,{"$f":"SUBTOTAL(109,ΈξΙαν[Ποσό])","v":{"v":861,"d":"861.00"}}]

{"sheet":"φεβ","index":3,"n_rows":9,"n_cols":5,"rows_kept":9,"merged":[[0,0,0,2]]}
["ΕΞΟΔΑ ΦΕΒΡΟΥΑΡΙΟΥ",null,null,"Σύνοψη","Συμβουλές"]
["Ημερομηνία","Αρ. ΔΠ","Ποσό","Κατηγορία","Περιγραφή"]
[{"$f":"DATE(YEAR(TODAY()),2,3)","v":"2016-02-03"},"A-12345",{"v":33,"d":"33.00"},"Έξοδο 1","Προμήθειες"]
[{"$f":"DATE(YEAR(TODAY()),2,4)","v":"2016-02-04"},"A-12346",{"v":238,"d":"238.00"},"Έξοδο 2"]
[null,null,{"v":342,"d":"342.00"},"Έξοδο 1"]
[null,null,{"v":110,"d":"110.00"},"Έξοδο 3"]
[null,null,{"v":84,"d":"84.00"},"Έξοδο 4"]
[null,null,{"v":54,"d":"54.00"},"Έξοδο 5"]
["Άθροισμα",null,{"$f":"SUBTOTAL(109,ΈξΦεβ[Ποσό])","v":{"v":861,"d":"861.00"}}]

{"sheet":"μαρ","index":4,"n_rows":9,"n_cols":5,"rows_kept":9,"merged":[[0,0,0,2]]}
["ΕΞΟΔΑ ΜΑΡΤΙΟΥ",null,null,"Σύνοψη","Συμβουλές"]
["Ημερομηνία","Αρ. ΔΠ","Ποσό","Κατηγορία","Περιγραφή"]
[{"$f":"DATE(YEAR(TODAY()),3,5)","v":"2016-03-05"},"A-12345",{"v":33,"d":"33.00"},"Έξοδο 1","Προμήθειες"]
[{"$f":"DATE(YEAR(TODAY()),3,6)","v":"2016-03-06"},"A-12346",{"v":238,"d":"238.00"},"Έξοδο 2"]
[null,null,{"v":55,"d":"55.00"},"Έξοδο 5"]
[null,null,{"v":110,"d":"110.00"},"Έξοδο 3"]
[null,null,{"v":84,"d":"84.00"},"Έξοδο 4"]
[null,null,{"v":54,"d":"54.00"},"Έξοδο 5"]
["Άθροισμα",null,{"$f":"SUBTOTAL(109,ΈξΜαρ[Ποσό])","v":{"v":574,"d":"574.00"}}]

{"sheet":"απρ","index":5,"n_rows":9,"n_cols":5,"rows_kept":9,"merged":[[0,0,0,2]]}
["ΕΞΟΔΑ ΑΠΡΙΛΙΟΥ",null,null,"Σύνοψη","Συμβουλές"]
["Ημερομηνία","Αρ. ΔΠ","Ποσό","Κατηγορία","Περιγραφή"]
[{"$f":"DATE(YEAR(TODAY()),4,4)","v":"2016-04-04"},"A-12345",{"v":45,"d":"45.00"},"Έξοδο 1","Προμήθειες"]
[{"$f":"DATE(YEAR(TODAY()),4,8)","v":"2016-04-08"},"A-12346",{"v":123,"d":"123.00"},"Έξοδο 2"]
[null,null,{"v":342,"d":"342.00"},"Έξοδο 4"]
[null,null,{"v":125,"d":"125.00"},"Έξοδο 3"]
[null,null,{"v":84,"d":"84.00"},"Έξοδο 4"]
[null,null,{"v":98,"d":"98.00"},"Έξοδο 5"]
["Άθροισμα",null,{"$f":"SUBTOTAL(109,ΈξΑπρ[Ποσό])","v":{"v":817,"d":"817.00"}}]

{"sheet":"μάι","index":6,"n_rows":9,"n_cols":5,"rows_kept":9,"merged":[[0,0,0,2]]}
["ΕΞΟΔΑ ΜΑΪΟΥ",null,null,"Σύνοψη","Συμβουλές"]
["Ημερομηνία","Αρ. ΔΠ","Ποσό","Κατηγορία","Περιγραφή"]
[{"$f":"DATE(YEAR(TODAY()),5,3)","v":"2016-05-03"},"A-12345",{"v":33,"d":"33.00"},"Έξοδο 1","Προμήθειες"]
[{"$f":"DATE(YEAR(TODAY()),5,8)","v":"2016-05-08"},"A-12346",{"v":111,"d":"111.00"},"Έξοδο 2"]
[null,null,{"v":342,"d":"342.00"},"Έξοδο 1"]
[null,null,{"v":333,"d":"333.00"},"Έξοδο 3"]
[null,null,{"v":125,"d":"125.00"},"Έξοδο 4"]
[null,null,{"v":33,"d":"33.00"},"Έξοδο 5"]
["Άθροισμα",null,{"$f":"SUBTOTAL(109,ΈξΜαΐ[Ποσό])","v":{"v":977,"d":"977.00"}}]

{"sheet":"ιούν","index":7,"n_rows":9,"n_cols":5,"rows_kept":9,"merged":[[0,0,0,2]]}
["ΕΞΟΔΑ ΙΟΥΝΙΟΥ",null,null,"Σύνοψη","Συμβουλές"]
["Ημερομηνία","Αρ. ΔΠ","Ποσό","Κατηγορία","Περιγραφή"]
[{"$f":"DATE(YEAR(TODAY()),6,7)","v":"2016-06-07"},"A-12345",{"v":201,"d":"201.00"},"Έξοδο 1","Προμήθειες"]
[{"$f":"DATE(YEAR(TODAY()),6,8)","v":"2016-06-08"},"A-12346",{"v":98,"d":"98.00"},"Έξοδο 2"]
[null,null,{"v":342,"d":"342.00"},"Έξοδο 5"]
[null,null,{"v":122,"d":"122.00"},"Έξοδο 3"]
[null,null,{"v":187,"d":"187.00"},"Έξοδο 4"]
[null,null,{"v":99,"d":"99.00"},"Έξοδο 5"]
["Άθροισμα",null,{"$f":"SUBTOTAL(109,ΈξΙουν[Ποσό])","v":{"v":1049,"d":"1,049.00"}}]

{"sheet":"ιούλ","index":8,"n_rows":9,"n_cols":5,"rows_kept":9,"merged":[[0,0,0,2]]}
["ΕΞΟΔΑ ΙΟΥΛΙΟΥ",null,null,"Σύνοψη","Συμβουλές"]
["Ημερομηνία","Αρ. ΔΠ","Ποσό","Κατηγορία","Περιγραφή"]
[{"$f":"DATE(YEAR(TODAY()),7,9)","v":"2016-07-09"},"A-12345",null,"Έξοδο 1","Προμήθειες"]
[{"$f":"DATE(YEAR(TODAY()),7,14)","v":"2016-07-14"},"A-12346",null,"Έξοδο 2"]
[{"$nulls":3},"Έξοδο 2"]
[{"$nulls":3},"Έξοδο 3"]
[{"$nulls":3},"Έξοδο 4"]
[{"$nulls":3},"Έξοδο 5"]
["Άθροισμα",null,{"$f":"SUBTOTAL(109,ΈξΙουλ[Ποσό])","v":{"v":0,"d":"0.00"}}]

{"sheet":"αύγ","index":9,"n_rows":9,"n_cols":5,"rows_kept":9,"merged":[[0,0,0,2]]}
["ΕΞΟΔΑ ΑΥΓΟΥΣΤΟΥ",null,null,"Σύνοψη","Συμβουλές"]
["Ημερομηνία","Αρ. ΔΠ","Ποσό","Κατηγορία","Περιγραφή"]
[{"$f":"DATE(YEAR(TODAY()),8,8)","v":"2016-08-08"},"A-12345",null,"Έξοδο 1","Προμήθειες"]
[{"$f":"DATE(YEAR(TODAY()),8,9)","v":"2016-08-09"},"A-12346",null,"Έξοδο 2"]
[{"$nulls":3},"Έξοδο 2"]
[{"$nulls":3},"Έξοδο 3"]
[{"$nulls":3},"Έξοδο 4"]
[{"$nulls":3},"Έξοδο 5"]
["Άθροισμα",null,{"$f":"SUBTOTAL(109,ΈξΑυγ[Ποσό])","v":{"v":0,"d":"0.00"}}]

{"sheet":"σεπ","index":10,"n_rows":9,"n_cols":5,"rows_kept":9,"merged":[[0,0,0,2]]}
["ΕΞΟΔΑ ΣΕΠΤΕΜΒΡΙΟΥ",null,null,"Σύνοψη","Συμβουλές"]
["Ημερομηνία","Αρ. ΔΠ","Ποσό","Κατηγορία","Περιγραφή"]
[{"$f":"DATE(YEAR(TODAY()),9,9)","v":"2016-09-09"},"A-12345",null,"Έξοδο 1","Προμήθειες"]
[{"$f":"DATE(YEAR(TODAY()),9,15)","v":"2016-09-15"},"A-12346",null,"Έξοδο 2"]
[{"$nulls":3},"Έξοδο 2"]
[{"$nulls":3},"Έξοδο 3"]
[{"$nulls":3},"Έξοδο 4"]
[{"$nulls":3},"Έξοδο 5"]
["Άθροισμα",null,{"$f":"SUBTOTAL(109,ΈξΣεπ[Ποσό])","v":{"v":0,"d":"0.00"}}]

{"sheet":"οκτ","index":11,"n_rows":9,"n_cols":5,"rows_kept":9,"merged":[[0,0,0,2]]}
["ΕΞΟΔΑ ΟΚΤΩΒΡΙΟΥ",null,null,"Σύνοψη","Συμβουλές"]
["Ημερομηνία","Αρ. ΔΠ","Ποσό","Κατηγορία","Περιγραφή"]
[{"$f":"DATE(YEAR(TODAY()),10,10)","v":"2016-10-10"},"A-12345",null,"Έξοδο 1","Προμήθειες"]
[{"$f":"DATE(YEAR(TODAY()),10,21)","v":"2016-10-21"},"A-12346",null,"Έξοδο 2"]
[{"$nulls":3},"Έξοδο 2"]
[{"$nulls":3},"Έξοδο 3"]
[{"$nulls":3},"Έξοδο 4"]
[{"$nulls":3},"Έξοδο 5"]
["Άθροισμα",null,{"$f":"SUBTOTAL(109,ΈξΟκτ[Ποσό])","v":{"v":0,"d":"0.00"}}]

{"sheet":"νοέ","index":12,"n_rows":9,"n_cols":5,"rows_kept":9,"merged":[[0,0,0,2]]}
["ΕΞΟΔΑ ΝΟΕΜΒΡΙΟΥ",null,null,"Σύνοψη","Συμβουλές"]
["Ημερομηνία","Αρ. ΔΠ","Ποσό","Κατηγορία","Περιγραφή"]
[{"$f":"DATE(YEAR(TODAY()),11,14)","v":"2016-11-14"},"A-12345",null,"Έξοδο 1","Προμήθειες"]
[{"$f":"DATE(YEAR(TODAY()),11,21)","v":"2016-11-21"},"A-12346",null,"Έξοδο 2"]
[{"$nulls":3},"Έξοδο 2"]
[{"$nulls":3},"Έξοδο 3"]
[{"$nulls":3},"Έξοδο 4"]
[{"$nulls":3},"Έξοδο 5"]
["Άθροισμα",null,{"$f":"SUBTOTAL(109,ΈξΝοε[Ποσό])","v":{"v":0,"d":"0.00"}}]

{"sheet":"δεκ","index":13,"n_rows":9,"n_cols":5,"rows_kept":9,"merged":[[0,0,0,2]]}
["ΕΞΟΔΑ ΔΕΚΕΜΒΡΙΟΥ",null,null,"Σύνοψη","Συμβουλές"]
["Ημερομηνία","Αρ. ΔΠ","Ποσό","Κατηγορία","Περιγραφή"]
[{"$f":"DATE(YEAR(TODAY()),12,2)","v":"2016-12-02"},"A-12345",{"v":201,"d":"201.00"},"Έξοδο 1","Προμήθειες"]
[{"$f":"DATE(YEAR(TODAY()),12,24)","v":"2016-12-24"},"A-12346",{"v":98,"d":"98.00"},"Έξοδο 2"]
[null,null,{"v":342,"d":"342.00"},"Έξοδο 2"]
[null,null,{"v":122,"d":"122.00"},"Έξοδο 3"]
[null,null,{"v":187,"d":"187.00"},"Έξοδο 4"]
[null,null,{"v":99,"d":"99.00"},"Έξοδο 5"]
["Άθροισμα",null,{"$f":"SUBTOTAL(109,ΈξΔεκ[Ποσό])","v":{"v":1049,"d":"1,049.00"}}]